[Event "Titled Tuesday Blitz September 13 Early 2022"]
[White "Belov, Vladimir"]
[Black "Chan, Luis"]
[WhiteFideId "4132394"]
[BlackFideId "3216357"]
[WhiteElo "2501"]
[BlackElo "1988"]
[Result "1-0"]
[Round "10"]
[TimeControl "180+1"]
[Date "2022.09.13"]
[WhiteClock "0:00:03"]
[BlackClock "0:00:02"]

1. d4 {[%clk 0:03:00]}  d6 {[%clk 0:03:00]} 2. e4 {[%clk 0:03:00]}  Nf6 {[%clk 0:03:00]} 3. Nc3 {[%clk 0:03:00]}  Nbd7 {[%clk 0:02:59]} 4. Nf3 {[%clk 0:02:57]}  e5 {[%clk 0:02:59]} 5. Bc4 {[%clk 0:02:57]}  Be7 {[%clk 0:02:59]} 6. O-O {[%clk 0:02:57]}  O-O {[%clk 0:02:59]} 7. a4 {[%clk 0:02:58]}  c6 {[%clk 0:02:59]} 8. Re1 {[%clk 0:02:57]}  b6 {[%clk 0:02:57]} 9. Be3 {[%clk 0:02:48]}  a6 {[%clk 0:02:54]} 10. d5 {[%clk 0:02:46]}  Bb7 {[%clk 0:02:51]} 11. dxc6 {[%clk 0:02:37]}  Bxc6 {[%clk 0:02:52]} 12. Nd2 {[%clk 0:02:34]}  Nc5 {[%clk 0:02:38]} 13. Bxc5 {[%clk 0:02:28]}  dxc5 {[%clk 0:02:33]} 14. Qe2 {[%clk 0:02:27]}  Bb7 {[%clk 0:02:18]} 15. Nf1 {[%clk 0:02:18]}  b5 {[%clk 0:01:40]} 16. axb5 {[%clk 0:02:13]}  axb5 {[%clk 0:01:41]} 17. Bxb5 {[%clk 0:02:14]}  Qb6 {[%clk 0:01:24]} 18. Rxa8 {[%clk 0:01:47]}  Rxa8 {[%clk 0:01:22]} 19. b3 {[%clk 0:01:42]}  Qa5 {[%clk 0:01:06]} 20. Nd5 {[%clk 0:01:20]}  Nxd5 {[%clk 0:01:01]} 21. exd5 {[%clk 0:01:20]}  Bd6 {[%clk 0:00:59]} 22. Ne3 {[%clk 0:01:12]}  Rd8 {[%clk 0:00:26]} 23. h4 {[%clk 0:01:07]}  g6 {[%clk 0:00:20]} 24. Rd1 {[%clk 0:01:05]}  e4 {[%clk 0:00:16]} 25. h5 {[%clk 0:00:58]}  Qc3 {[%clk 0:00:14]} 26. Qg4 {[%clk 0:00:45]}  Qe5 {[%clk 0:00:12]} 27. hxg6 {[%clk 0:00:41]}  hxg6 {[%clk 0:00:12]} 28. g3 {[%clk 0:00:36]}  Kg7 {[%clk 0:00:11]} 29. Nc4 {[%clk 0:00:30]}  Qe7 {[%clk 0:00:10]} 30. Nxd6 {[%clk 0:00:29]}  Rxd6 {[%clk 0:00:11]} 31. c4 {[%clk 0:00:25]}  e3 {[%clk 0:00:12]} 32. Qe2 {[%clk 0:00:21]}  exf2+ {[%clk 0:00:11]} 33. Qxf2 {[%clk 0:00:22]}  Rf6 {[%clk 0:00:10]} 34. Qb2 {[%clk 0:00:20]}  Qe3+ {[%clk 0:00:09]} 35. Kg2 {[%clk 0:00:19]}  Bc8 {[%clk 0:00:09]} 36. Rf1 {[%clk 0:00:17]}  Bf5 {[%clk 0:00:09]} 37. Rf3 {[%clk 0:00:11]}  Qe4 {[%clk 0:00:06]} 38. Kf2 {[%clk 0:00:11]}  g5 {[%clk 0:00:06]} 39. Bd7 {[%clk 0:00:10]}  Kg6 {[%clk 0:00:06]} 40. Bxf5+ {[%clk 0:00:03]}  Rxf5 {[%clk 0:00:07]} 41. Rxf5 {[%clk 0:00:04]}  Qxf5+ {[%clk 0:00:07]} 42. Kg2 {[%clk 0:00:04]}  Qe4+ {[%clk 0:00:07]} 43. Kf2 {[%clk 0:00:05]}  Qf5+ {[%clk 0:00:08]} 44. Kg1 {[%clk 0:00:04]}  Qf3 {[%clk 0:00:07]} 45. Qc2+ {[%clk 0:00:04]}  f5 {[%clk 0:00:07]} 46. Kh2 {[%clk 0:00:02]}  g4 {[%clk 0:00:02]} 47. Qd2 {[%clk 0:00:03]}  Kf6 {[%clk 0:00:02]} 48. d6 {[%clk 0:00:03]} 1-0


[Site "https://www.chess.com"]

[Event "Titled Tuesday Blitz September 13 Early 2022"]
[White "Bortnyk, Olexandr"]
[Black "Kevlishvili, Robby"]
[WhiteFideId "14120828"]
[BlackFideId "1040634"]
[WhiteElo "2723"]
[BlackElo "2585"]
[Result "1-0"]
[Round "10"]
[TimeControl "180+1"]
[Date "2022.09.13"]
[WhiteClock "0:00:01"]
[BlackClock "0:00:03"]

1. d4 {[%clk 0:03:00]}  d5 {[%clk 0:02:59]} 2. Nc3 {[%clk 0:03:00]}  Nf6 {[%clk 0:02:58]} 3. Bf4 {[%clk 0:03:00]}  c5 {[%clk 0:02:52]} 4. e4 {[%clk 0:03:00]}  Nxe4 {[%clk 0:02:36]} 5. Nxe4 {[%clk 0:02:59]}  dxe4 {[%clk 0:02:36]} 6. dxc5 {[%clk 0:03:00]}  Qxd1+ {[%clk 0:02:22]} 7. Rxd1 {[%clk 0:03:01]}  Nc6 {[%clk 0:02:22]} 8. Bb5 {[%clk 0:02:48]}  Bd7 {[%clk 0:02:22]} 9. Ne2 {[%clk 0:02:40]}  e5 {[%clk 0:02:08]} 10. Be3 {[%clk 0:02:14]}  f5 {[%clk 0:02:02]} 11. Nc3 {[%clk 0:02:12]}  Rc8 {[%clk 0:01:57]} 12. Rd5 {[%clk 0:02:10]}  Be6 {[%clk 0:01:48]} 13. Rxe5 {[%clk 0:02:02]}  Kf7 {[%clk 0:01:48]} 14. Bxc6 {[%clk 0:01:55]}  bxc6 {[%clk 0:01:38]} 15. f3 {[%clk 0:01:41]}  exf3 {[%clk 0:01:37]} 16. gxf3 {[%clk 0:01:36]}  Be7 {[%clk 0:01:33]} 17. Bf2 {[%clk 0:01:26]}  Bf6 {[%clk 0:01:31]} 18. Re3 {[%clk 0:01:26]}  Bc4 {[%clk 0:01:22]} 19. f4 {[%clk 0:01:18]}  Bd4 {[%clk 0:01:14]} 20. Re7+ {[%clk 0:01:10]}  Kxe7 {[%clk 0:01:10]} 21. Bxd4 {[%clk 0:01:11]}  Kf7 {[%clk 0:01:10]} 22. Rg1 {[%clk 0:01:00]}  Rhe8+ {[%clk 0:01:10]} 23. Be5 {[%clk 0:00:55]}  g6 {[%clk 0:01:11]} 24. b3 {[%clk 0:00:55]}  Ba6 {[%clk 0:01:08]} 25. Kf2 {[%clk 0:00:51]}  Rcd8 {[%clk 0:01:08]} 26. Ke3 {[%clk 0:00:51]}  h6 {[%clk 0:00:58]} 27. h4 {[%clk 0:00:52]}  Rd7 {[%clk 0:00:58]} 28. a4 {[%clk 0:00:50]}  Rde7 {[%clk 0:00:53]} 29. b4 {[%clk 0:00:45]}  Rxe5+ {[%clk 0:00:50]} 30. fxe5 {[%clk 0:00:45]}  Rxe5+ {[%clk 0:00:50]} 31. Kd4 {[%clk 0:00:45]}  Re8 {[%clk 0:00:50]} 32. b5 {[%clk 0:00:45]}  Bb7 {[%clk 0:00:45]} 33. Kc4 {[%clk 0:00:36]}  Kf6 {[%clk 0:00:41]} 34. Rd1 {[%clk 0:00:35]}  g5 {[%clk 0:00:37]} 35. hxg5+ {[%clk 0:00:33]}  hxg5 {[%clk 0:00:38]} 36. Rd6+ {[%clk 0:00:23]}  Re6 {[%clk 0:00:38]} 37. Rd8 {[%clk 0:00:21]}  g4 {[%clk 0:00:31]} 38. Kd3 {[%clk 0:00:15]}  g3 {[%clk 0:00:27]} 39. Rg8 {[%clk 0:00:15]}  f4 {[%clk 0:00:24]} 40. Ne2 {[%clk 0:00:14]}  Kf7 {[%clk 0:00:15]} 41. Rg4 {[%clk 0:00:12]}  cxb5 {[%clk 0:00:14]} 42. Rxf4+ {[%clk 0:00:08]}  Rf6 {[%clk 0:00:11]} 43. axb5 {[%clk 0:00:06]}  g2 {[%clk 0:00:09]} 44. c6 {[%clk 0:00:02]}  Rxf4 {[%clk 0:00:08]} 45. cxb7 {[%clk 0:00:02]}  Rf3+ {[%clk 0:00:08]} 46. Kc4 {[%clk 0:00:02]}  Rf4+ {[%clk 0:00:05]} 47. Kb3 {[%clk 0:00:02]}  Rf3+ {[%clk 0:00:03]} 48. c3 {[%clk 0:00:03]}  Rf2 {[%clk 0:00:02]} 49. Ng1 {[%clk 0:00:01]}  Re2 {[%clk 0:00:03]} 50. Nxe2 {[%clk 0:00:01]}  g1=Q {[%clk 0:00:03]} 51. Nxg1 {[%clk 0:00:01]} 1-0


[Site "https://www.chess.com"]

[Event "Titled Tuesday Blitz September 13 Early 2022"]
[White "Bykhovsky, Anatoly"]
[Black "Hasangatin, Ramil"]
[WhiteFideId "2806991"]
[BlackFideId "4122160"]
[WhiteElo "2540"]
[BlackElo "2327"]
[Result "1/2-1/2"]
[Round "10"]
[TimeControl "180+1"]
[Date "2022.09.13"]
[WhiteClock "0:00:20"]
[BlackClock "0:00:12"]

1. d4 {[%clk 0:03:00]}  Nf6 {[%clk 0:02:56]} 2. c4 {[%clk 0:02:59]}  d6 {[%clk 0:02:56]} 3. Nc3 {[%clk 0:02:59]}  e5 {[%clk 0:02:56]} 4. Nf3 {[%clk 0:02:58]}  e4 {[%clk 0:02:56]} 5. Ng5 {[%clk 0:02:54]}  Qe7 {[%clk 0:02:56]} 6. Qc2 {[%clk 0:02:54]}  Bf5 {[%clk 0:02:56]} 7. f3 {[%clk 0:02:54]}  Nc6 {[%clk 0:02:55]} 8. d5 {[%clk 0:02:47]}  Nd4 {[%clk 0:02:54]} 9. Qd1 {[%clk 0:02:47]}  c5 {[%clk 0:02:46]} 10. dxc6 {[%clk 0:02:32]}  Nxc6 {[%clk 0:02:43]} 11. Nd5 {[%clk 0:02:29]}  Qd8 {[%clk 0:02:32]} 12. e3 {[%clk 0:02:15]}  h6 {[%clk 0:02:24]} 13. Nxf6+ {[%clk 0:02:11]}  Qxf6 {[%clk 0:02:23]} 14. Nxe4 {[%clk 0:02:11]}  Bxe4 {[%clk 0:02:24]} 15. fxe4 {[%clk 0:02:12]}  Qh4+ {[%clk 0:02:24]} 16. g3 {[%clk 0:02:09]}  Qxe4 {[%clk 0:02:24]} 17. Qd5 {[%clk 0:02:10]}  Qxd5 {[%clk 0:02:05]} 18. cxd5 {[%clk 0:02:10]}  Ne5 {[%clk 0:02:04]} 19. Bd2 {[%clk 0:02:04]}  Be7 {[%clk 0:02:00]} 20. Bc3 {[%clk 0:02:02]}  Bf6 {[%clk 0:01:58]} 21. Be2 {[%clk 0:02:00]}  Nd7 {[%clk 0:01:54]} 22. Rc1 {[%clk 0:01:54]}  Rc8 {[%clk 0:01:50]} 23. Kd2 {[%clk 0:01:50]}  Bxc3+ {[%clk 0:01:48]} 24. Rxc3 {[%clk 0:01:50]}  Rxc3 {[%clk 0:01:48]} 25. Kxc3 {[%clk 0:01:51]}  Ke7 {[%clk 0:01:47]} 26. Kd4 {[%clk 0:01:51]}  Ne5 {[%clk 0:01:30]} 27. Rc1 {[%clk 0:01:50]}  Rb8 {[%clk 0:01:26]} 28. h4 {[%clk 0:01:46]}  Kd8 {[%clk 0:01:25]} 29. Bd1 {[%clk 0:01:41]}  Rc8 {[%clk 0:01:24]} 30. Rxc8+ {[%clk 0:01:41]}  Kxc8 {[%clk 0:01:25]} 31. b4 {[%clk 0:01:42]}  Kd8 {[%clk 0:01:24]} 32. a4 {[%clk 0:01:41]}  Ke7 {[%clk 0:01:23]} 33. a5 {[%clk 0:01:40]}  Kf6 {[%clk 0:01:21]} 34. Be2 {[%clk 0:01:38]}  Kf5 {[%clk 0:01:20]} 35. e4+ {[%clk 0:01:37]}  Kf6 {[%clk 0:01:20]} 36. Bd1 {[%clk 0:01:26]}  g6 {[%clk 0:01:19]} 37. Be2 {[%clk 0:01:25]}  g5 {[%clk 0:01:16]} 38. hxg5+ {[%clk 0:01:24]}  Kxg5 {[%clk 0:01:17]} 39. Bd1 {[%clk 0:01:22]}  h5 {[%clk 0:01:09]} 40. Be2 {[%clk 0:01:22]}  h4 {[%clk 0:01:09]} 41. gxh4+ {[%clk 0:01:22]}  Kxh4 {[%clk 0:01:10]} 42. Ke3 {[%clk 0:01:22]}  Kg5 {[%clk 0:01:06]} 43. Bd1 {[%clk 0:01:21]}  Kf6 {[%clk 0:00:53]} 44. Be2 {[%clk 0:01:21]}  Ng6 {[%clk 0:00:50]} 45. Kd4 {[%clk 0:01:14]}  Ne5 {[%clk 0:00:50]} 46. Bd1 {[%clk 0:01:05]}  Kg5 {[%clk 0:00:49]} 47. Ke3 {[%clk 0:01:05]}  f5 {[%clk 0:00:44]} 48. exf5 {[%clk 0:01:02]}  Kxf5 {[%clk 0:00:45]} 49. Bc2+ {[%clk 0:01:03]}  Kf6 {[%clk 0:00:44]} 50. Kd4 {[%clk 0:01:02]}  Nf7 {[%clk 0:00:39]} 51. Bd1 {[%clk 0:01:01]}  Nh6 {[%clk 0:00:38]} 52. Bc2 {[%clk 0:00:59]}  Kg5 {[%clk 0:00:37]} 53. Bd3 {[%clk 0:00:52]}  Kf4 {[%clk 0:00:37]} 54. Bg6 {[%clk 0:00:48]}  Nf5+ {[%clk 0:00:36]} 55. Kc4 {[%clk 0:00:47]}  Ke5 {[%clk 0:00:36]} 56. Be8 {[%clk 0:00:38]}  Ne3+ {[%clk 0:00:34]} 57. Kb5 {[%clk 0:00:38]}  Nxd5 {[%clk 0:00:35]} 58. Bd7 {[%clk 0:00:35]}  Nc7+ {[%clk 0:00:32]} 59. Kc4 {[%clk 0:00:34]}  d5+ {[%clk 0:00:27]} 60. Kc5 {[%clk 0:00:35]}  Na6+ {[%clk 0:00:27]} 61. Kb5 {[%clk 0:00:33]}  d4 {[%clk 0:00:27]} 62. Bc8 {[%clk 0:00:33]}  Nc7+ {[%clk 0:00:20]} 63. Kc5 {[%clk 0:00:31]}  Ne6+ {[%clk 0:00:15]} 64. Bxe6 {[%clk 0:00:16]}  Kxe6 {[%clk 0:00:15]} 65. Kxd4 {[%clk 0:00:17]}  Kd6 {[%clk 0:00:16]} 66. b5 {[%clk 0:00:17]}  b6 {[%clk 0:00:11]} 67. a6 {[%clk 0:00:17]}  Ke6 {[%clk 0:00:10]} 68. Ke4 {[%clk 0:00:18]}  Kd6 {[%clk 0:00:11]} 69. Kd4 {[%clk 0:00:19]}  Ke6 {[%clk 0:00:11]} 70. Ke4 {[%clk 0:00:19]}  Kd6 {[%clk 0:00:12]} 71. Kd4 {[%clk 0:00:20]} 1/2-1/2


[Site "https://www.chess.com"]

[Event "Titled Tuesday Blitz September 13 Early 2022"]
[White "Decuigniere, Tom"]
[Black "Ibarra Jerez, Jose Carlos"]
[WhiteFideId "26093820"]
[BlackFideId "2226332"]
[WhiteElo "2041"]
[BlackElo "2627"]
[Result "0-1"]
[Round "10"]
[TimeControl "180+1"]
[Date "2022.09.13"]
[WhiteClock "0:00:07"]
[BlackClock "0:00:14"]

1. c4 {[%clk 0:03:00]}  e6 {[%clk 0:02:58]} 2. g3 {[%clk 0:02:58]}  d5 {[%clk 0:02:57]} 3. Bg2 {[%clk 0:02:59]}  dxc4 {[%clk 0:02:55]} 4. Qa4+ {[%clk 0:02:52]}  Nd7 {[%clk 0:02:55]} 5. Qxc4 {[%clk 0:02:52]}  a6 {[%clk 0:02:47]} 6. Nf3 {[%clk 0:02:49]}  b5 {[%clk 0:02:46]} 7. Qc2 {[%clk 0:02:43]}  Bb7 {[%clk 0:02:44]} 8. O-O {[%clk 0:02:43]}  c5 {[%clk 0:02:44]} 9. a4 {[%clk 0:02:40]}  Ngf6 {[%clk 0:02:42]} 10. d4 {[%clk 0:02:24]}  Rc8 {[%clk 0:02:41]} 11. axb5 {[%clk 0:02:21]}  axb5 {[%clk 0:02:41]} 12. dxc5 {[%clk 0:02:17]}  Bxc5 {[%clk 0:02:40]} 13. Qb3 {[%clk 0:02:12]}  b4 {[%clk 0:02:36]} 14. Bf4 {[%clk 0:02:03]}  Bd5 {[%clk 0:02:34]} 15. Qd1 {[%clk 0:01:57]}  O-O {[%clk 0:02:32]} 16. Nbd2 {[%clk 0:01:56]}  Qb6 {[%clk 0:02:32]} 17. e3 {[%clk 0:01:37]}  Rfe8 {[%clk 0:02:22]} 18. Nb3 {[%clk 0:01:37]}  Bf8 {[%clk 0:02:17]} 19. Ne5 {[%clk 0:00:57]}  Bxg2 {[%clk 0:01:42]} 20. Kxg2 {[%clk 0:00:58]}  Nxe5 {[%clk 0:01:27]} 21. Bxe5 {[%clk 0:00:59]}  Qb7+ {[%clk 0:01:28]} 22. Qf3 {[%clk 0:00:57]}  Ne4 {[%clk 0:01:27]} 23. Nd2 {[%clk 0:00:31]}  f5 {[%clk 0:01:27]} 24. Nxe4 {[%clk 0:00:25]}  fxe4 {[%clk 0:01:27]} 25. Qf4 {[%clk 0:00:21]}  Rc5 {[%clk 0:01:19]} 26. Rac1 {[%clk 0:00:17]}  Rec8 {[%clk 0:01:11]} 27. Rxc5 {[%clk 0:00:17]}  Rxc5 {[%clk 0:01:12]} 28. Rd1 {[%clk 0:00:17]}  Rd5 {[%clk 0:01:03]} 29. Qxe4 {[%clk 0:00:14]}  Qd7 {[%clk 0:00:58]} 30. Rxd5 {[%clk 0:00:13]}  exd5 {[%clk 0:00:59]} 31. Qd4 {[%clk 0:00:14]}  Qc6 {[%clk 0:00:54]} 32. h4 {[%clk 0:00:12]}  h5 {[%clk 0:00:53]} 33. Qd1 {[%clk 0:00:07]}  g6 {[%clk 0:00:44]} 34. Bd4 {[%clk 0:00:07]}  Qe6 {[%clk 0:00:41]} 35. Qf3 {[%clk 0:00:07]}  b3 {[%clk 0:00:40]} 36. Qf6 {[%clk 0:00:07]}  Qxf6 {[%clk 0:00:32]} 37. Bxf6 {[%clk 0:00:08]}  Kf7 {[%clk 0:00:33]} 38. Bd4 {[%clk 0:00:08]}  Ke6 {[%clk 0:00:34]} 39. Kf3 {[%clk 0:00:08]}  Kf5 {[%clk 0:00:35]} 40. Kg2 {[%clk 0:00:07]}  Ke4 {[%clk 0:00:35]} 41. f3+ {[%clk 0:00:06]}  Kd3 {[%clk 0:00:34]} 42. g4 {[%clk 0:00:06]}  Bb4 {[%clk 0:00:25]} 43. Kg3 {[%clk 0:00:04]}  Be1+ {[%clk 0:00:24]} 44. Kh3 {[%clk 0:00:05]}  Bf2 {[%clk 0:00:23]} 45. f4 {[%clk 0:00:03]}  Bxe3 {[%clk 0:00:20]} 46. Bxe3 {[%clk 0:00:02]}  Kxe3 {[%clk 0:00:21]} 47. f5 {[%clk 0:00:03]}  hxg4+ {[%clk 0:00:19]} 48. Kxg4 {[%clk 0:00:04]}  gxf5+ {[%clk 0:00:19]} 49. Kxf5 {[%clk 0:00:05]}  d4 {[%clk 0:00:19]} 50. h5 {[%clk 0:00:06]}  d3 {[%clk 0:00:20]} 51. h6 {[%clk 0:00:06]}  d2 {[%clk 0:00:21]} 52. h7 {[%clk 0:00:07]}  d1=Q {[%clk 0:00:21]} 53. h8=Q {[%clk 0:00:08]}  Qd5+ {[%clk 0:00:20]} 54. Kg4 {[%clk 0:00:07]}  Qd4+ {[%clk 0:00:14]} 0-1


[Site "https://www.chess.com"]

[Event "Titled Tuesday Blitz September 13 Early 2022"]
[White "Harvey, Marcus R"]
[Black "Ginzburg, Yakov"]
[WhiteFideId "400092"]
[BlackFideId "4157176"]
[WhiteElo "2485"]
[BlackElo "2265"]
[Result "0-1"]
[Round "10"]
[TimeControl "180+1"]
[Date "2022.09.13"]
[WhiteClock "0:00:10"]
[BlackClock "0:00:26"]

1. e4 {[%clk 0:02:45]}  c5 {[%clk 0:02:58]} 2. Nf3 {[%clk 0:02:46]}  e6 {[%clk 0:02:59]} 3. d4 {[%clk 0:02:46]}  cxd4 {[%clk 0:02:59]} 4. Nxd4 {[%clk 0:02:46]}  Nf6 {[%clk 0:02:58]} 5. Nc3 {[%clk 0:02:47]}  Nc6 {[%clk 0:02:58]} 6. Be2 {[%clk 0:02:47]}  Bb4 {[%clk 0:02:55]} 7. O-O {[%clk 0:02:46]}  Bxc3 {[%clk 0:02:54]} 8. bxc3 {[%clk 0:02:47]}  Nxe4 {[%clk 0:02:51]} 9. Nxc6 {[%clk 0:02:47]}  dxc6 {[%clk 0:02:40]} 10. Bd3 {[%clk 0:02:48]}  Nxc3 {[%clk 0:02:18]} 11. Qh5 {[%clk 0:02:47]}  Qd5 {[%clk 0:02:03]} 12. Qh4 {[%clk 0:02:46]}  c5 {[%clk 0:01:34]} 13. Qg3 {[%clk 0:02:06]}  Qd4 {[%clk 0:01:20]} 14. Be3 {[%clk 0:01:44]}  Qxd3 {[%clk 0:00:58]} 15. Qxg7 {[%clk 0:01:08]}  Ne2+ {[%clk 0:00:58]} 16. Kh1 {[%clk 0:01:08]}  Qc3 {[%clk 0:00:59]} 17. Qg4 {[%clk 0:00:51]}  Nd4 {[%clk 0:00:58]} 18. Rad1 {[%clk 0:00:52]}  Bd7 {[%clk 0:00:54]} 19. Bg5 {[%clk 0:00:37]}  Rg8 {[%clk 0:00:48]} 20. Qh4 {[%clk 0:00:36]}  Bc6 {[%clk 0:00:42]} 21. f3 {[%clk 0:00:26]}  Qxc2 {[%clk 0:00:32]} 22. Rd2 {[%clk 0:00:21]}  Qg6 {[%clk 0:00:30]} 23. Bf4 {[%clk 0:00:10]}  Nxf3 {[%clk 0:00:26]} 0-1


[Site "https://www.chess.com"]

[Event "Titled Tuesday Blitz September 13 Early 2022"]
[White "Indjic, Aleksandar"]
[Black "Atakhan, Abtin"]
[WhiteFideId "911925"]
[BlackFideId "22502203"]
[WhiteElo "2592"]
[BlackElo "2087"]
[Result "1-0"]
[Round "10"]
[TimeControl "180+1"]
[Date "2022.09.13"]
[WhiteClock "0:00:02"]
[BlackClock "0:00:03"]

1. e4 {[%clk 0:03:00]}  c5 {[%clk 0:03:00]} 2. Nf3 {[%clk 0:03:00]}  Nc6 {[%clk 0:03:00]} 3. Bb5 {[%clk 0:02:59]}  e6 {[%clk 0:03:00]} 4. Bxc6 {[%clk 0:02:56]}  bxc6 {[%clk 0:03:00]} 5. e5 {[%clk 0:02:54]}  Ne7 {[%clk 0:03:00]} 6. d3 {[%clk 0:02:52]}  Ng6 {[%clk 0:03:00]} 7. O-O {[%clk 0:02:50]}  f6 {[%clk 0:02:59]} 8. Re1 {[%clk 0:02:47]}  Be7 {[%clk 0:02:54]} 9. Nbd2 {[%clk 0:02:44]}  O-O {[%clk 0:02:47]} 10. Nc4 {[%clk 0:02:44]}  Qc7 {[%clk 0:02:43]} 11. Bd2 {[%clk 0:02:23]}  fxe5 {[%clk 0:02:27]} 12. Ncxe5 {[%clk 0:02:22]}  Nh8 {[%clk 0:02:20]} 13. c3 {[%clk 0:01:43]}  d6 {[%clk 0:02:19]} 14. Nc4 {[%clk 0:01:40]}  e5 {[%clk 0:02:20]} 15. d4 {[%clk 0:01:39]}  exd4 {[%clk 0:01:25]} 16. cxd4 {[%clk 0:01:26]}  Bg4 {[%clk 0:01:24]} 17. dxc5 {[%clk 0:01:21]}  Bxf3 {[%clk 0:01:20]} 18. cxd6 {[%clk 0:01:16]}  Bxd6 {[%clk 0:01:15]} 19. gxf3 {[%clk 0:01:15]}  Bxh2+ {[%clk 0:01:11]} 20. Kg2 {[%clk 0:01:15]}  Ng6 {[%clk 0:01:11]} 21. Re4 {[%clk 0:01:13]}  Bf4 {[%clk 0:00:59]} 22. Bc3 {[%clk 0:01:12]}  Rad8 {[%clk 0:00:53]} 23. Qb3 {[%clk 0:01:09]}  Rd5 {[%clk 0:00:52]} 24. Rh1 {[%clk 0:01:07]}  Qf7 {[%clk 0:00:45]} 25. Rh3 {[%clk 0:00:59]}  Bc7 {[%clk 0:00:39]} 26. Ne3 {[%clk 0:00:57]}  Nf4+ {[%clk 0:00:18]} 27. Rxf4 {[%clk 0:00:57]}  Bxf4 {[%clk 0:00:19]} 28. Nxd5 {[%clk 0:00:56]}  cxd5 {[%clk 0:00:20]} 29. Qc2 {[%clk 0:00:44]}  h6 {[%clk 0:00:20]} 30. Qd3 {[%clk 0:00:43]}  Qe6 {[%clk 0:00:19]} 31. Rh4 {[%clk 0:00:42]}  Rf5 {[%clk 0:00:17]} 32. Rg4 {[%clk 0:00:42]}  Be5 {[%clk 0:00:15]} 33. Qe3 {[%clk 0:00:32]}  Qf6 {[%clk 0:00:10]} 34. Bxe5 {[%clk 0:00:31]}  Rxe5 {[%clk 0:00:11]} 35. Qxa7 {[%clk 0:00:30]}  h5 {[%clk 0:00:10]} 36. Rg3 {[%clk 0:00:15]}  h4 {[%clk 0:00:10]} 37. Rh3 {[%clk 0:00:09]}  Rg5+ {[%clk 0:00:09]} 38. Kf1 {[%clk 0:00:08]}  Qxb2 {[%clk 0:00:08]} 39. Qe3 {[%clk 0:00:07]}  Qa1+ {[%clk 0:00:07]} 40. Ke2 {[%clk 0:00:06]}  Re5 {[%clk 0:00:07]} 41. Rxh4 {[%clk 0:00:04]}  Qxa2+ {[%clk 0:00:07]} 42. Kf1 {[%clk 0:00:04]}  Rxe3 {[%clk 0:00:07]} 43. fxe3 {[%clk 0:00:04]}  Qb1+ {[%clk 0:00:06]} 44. Kf2 {[%clk 0:00:04]}  Qc2+ {[%clk 0:00:07]} 45. Kg3 {[%clk 0:00:05]}  Qd3 {[%clk 0:00:07]} 46. Rd4 {[%clk 0:00:04]}  Qxe3 {[%clk 0:00:06]} 47. Rxd5 {[%clk 0:00:05]}  Kf7 {[%clk 0:00:06]} 48. Rf5+ {[%clk 0:00:05]}  Kg6 {[%clk 0:00:06]} 49. Rf4 {[%clk 0:00:05]}  Qg1+ {[%clk 0:00:05]} 50. Kh3 {[%clk 0:00:05]}  Qh1+ {[%clk 0:00:03]} 51. Kg3 {[%clk 0:00:05]}  Qe1+ {[%clk 0:00:02]} 52. Kh3 {[%clk 0:00:05]}  Kh5 {[%clk 0:00:02]} 53. Re4 {[%clk 0:00:03]}  g5 {[%clk 0:00:03]} 54. Rxe1 {[%clk 0:00:02]} 1-0


[Site "https://www.chess.com"]

[Event "Titled Tuesday Blitz September 13 Early 2022"]
[White "Jobava, Baadur"]
[Black "Kosakowski, Jakub"]
[WhiteFideId "13601520"]
[BlackFideId "1185080"]
[WhiteElo "2582"]
[BlackElo "2453"]
[Result "1-0"]
[Round "10"]
[TimeControl "180+1"]
[Date "2022.09.13"]
[WhiteClock "0:00:10"]
[BlackClock "0:00:03"]

1. e4 {[%clk 0:03:00]}  c6 {[%clk 0:02:55]} 2. c4 {[%clk 0:02:57]}  d5 {[%clk 0:02:54]} 3. exd5 {[%clk 0:02:58]}  cxd5 {[%clk 0:02:55]} 4. d4 {[%clk 0:02:59]}  Nf6 {[%clk 0:02:55]} 5. Nc3 {[%clk 0:03:00]}  Nc6 {[%clk 0:02:56]} 6. Nf3 {[%clk 0:03:00]}  a6 {[%clk 0:02:57]} 7. h3 {[%clk 0:02:53]}  g6 {[%clk 0:02:53]} 8. c5 {[%clk 0:02:49]}  Bg7 {[%clk 0:02:51]} 9. Bd3 {[%clk 0:02:48]}  Bf5 {[%clk 0:02:39]} 10. O-O {[%clk 0:02:43]}  Ne4 {[%clk 0:02:36]} 11. Re1 {[%clk 0:02:38]}  Nxc3 {[%clk 0:02:21]} 12. bxc3 {[%clk 0:02:39]}  Qd7 {[%clk 0:02:22]} 13. Rb1 {[%clk 0:02:37]}  Bxd3 {[%clk 0:02:16]} 14. Qxd3 {[%clk 0:02:37]}  O-O {[%clk 0:02:16]} 15. Bf4 {[%clk 0:02:36]}  f6 {[%clk 0:02:17]} 16. Re2 {[%clk 0:02:27]}  Rae8 {[%clk 0:02:03]} 17. Reb2 {[%clk 0:02:26]}  Na5 {[%clk 0:01:39]} 18. Rb6 {[%clk 0:01:56]}  e5 {[%clk 0:01:15]} 19. Rd6 {[%clk 0:01:53]}  Qf7 {[%clk 0:01:14]} 20. dxe5 {[%clk 0:00:51]}  fxe5 {[%clk 0:01:15]} 21. Ng5 {[%clk 0:00:52]}  Qxf4 {[%clk 0:01:12]} 22. Qxd5+ {[%clk 0:00:52]}  Kh8 {[%clk 0:01:13]} 23. Ne4 {[%clk 0:00:53]}  Qf7 {[%clk 0:00:58]} 24. c4 {[%clk 0:00:44]}  Nxc4 {[%clk 0:00:57]} 25. Rxb7 {[%clk 0:00:44]}  Nxd6 {[%clk 0:00:36]} 26. Rxf7 {[%clk 0:00:43]}  Nxf7 {[%clk 0:00:37]} 27. Qc4 {[%clk 0:00:34]}  Rd8 {[%clk 0:00:27]} 28. Qxa6 {[%clk 0:00:33]}  Rd4 {[%clk 0:00:27]} 29. Qe2 {[%clk 0:00:30]}  Nd8 {[%clk 0:00:23]} 30. g3 {[%clk 0:00:26]}  Nc6 {[%clk 0:00:19]} 31. Kg2 {[%clk 0:00:25]}  Ra4 {[%clk 0:00:19]} 32. Nd6 {[%clk 0:00:24]}  Nd4 {[%clk 0:00:19]} 33. Qd2 {[%clk 0:00:15]}  h6 {[%clk 0:00:18]} 34. h4 {[%clk 0:00:14]}  Rfa8 {[%clk 0:00:17]} 35. Qd3 {[%clk 0:00:13]}  e4 {[%clk 0:00:13]} 36. Qxe4 {[%clk 0:00:12]}  Nf5 {[%clk 0:00:13]} 37. Nf7+ {[%clk 0:00:12]}  Kh7 {[%clk 0:00:13]} 38. Qe6 {[%clk 0:00:13]}  Rxa2 {[%clk 0:00:11]} 39. h5 {[%clk 0:00:13]}  gxh5 {[%clk 0:00:04]} 40. Qxf5+ {[%clk 0:00:13]}  Kg8 {[%clk 0:00:05]} 41. Qd5 {[%clk 0:00:12]}  Kh7 {[%clk 0:00:05]} 42. Nd6 {[%clk 0:00:10]}  Rb2 {[%clk 0:00:03]} 43. Qxa8 {[%clk 0:00:10]} 1-0


[Site "https://www.chess.com"]